bitfinex/quotes_ETHUSD_20251011
["timestamp","ask_amount","ask_price","bid_price","bid_amount"]
[1760181221412,1.921,3820.6,3819.0,0.45868486]
[1760181221614,1.921,3820.6,3819.0,0.4325]
[1760181221615,0.4303,3820.4,3819.0,0.4325]
[1760181221802,0.001,3820.6,3818.6,2.61874287]
[1760181221803,2.6182195,3819.4,3818.6,2.61874287]
[1760181222000,2.6182195,3819.4,3818.7,14.5]
[1760181222424,0.425,3819.7,3818.7,14.5]
[1760181222425,2.61831316,3819.3,3818.7,14.5]
[1760181222629,2.61821831,3819.4,3818.7,14.5]
[1760181223495,2.61828248,3819.3,3818.7,14.5]
[1760181223695,2.61799035,3819.8,3818.9,2.61849116]
[1760181223896,2.61788813,3819.9,3819.0,3.05096906]
[1760181224094,0.1,3820.0,3819.1,0.45868417]
[1760181224395,0.1,3820.0,3819.8,0.1304]
[1760181224625,0.1,3820.0,3819.9,0.4325]
[1760181225526,0.1,3820.0,3819.9,3.63287155]
[1760181225895,0.1,3820.0,3819.9,18.13287155]
[1760181226233,0.1,3820.0,3819.9,20.18327155]
[1760181232099,0.1,3820.0,3819.9,15.0629]
[1760181233051,0.1,3820.0,3819.9,17.68076957]
[1760181234303,0.1,3820.0,3819.9,19.60076957]
[1760181235842,0.1,3820.0,3819.9,19.62796957]
[1760181238465,0.1,3820.0,3819.9,14.6304]
[1760181238967,0.1,3820.0,3819.9,15.0901]
[1760181239124,0.1,3820.0,3819.9,14.6304]
[1760181239324,0.1,3820.0,3819.9,0.1304]
[1760181239635,0.1,3820.0,3819.9,2.74826957]
[1760181239964,0.1,3820.0,3819.9,14.5]
[1760181240317,0.1,3820.0,3819.1,1.92]
[1760181240318,0.1,3820.0,3819.1,0.4597]
[1760181240426,0.1,3820.0,3818.0,2.6191058]
[1760181240427,0.1,3820.0,3819.4,0.4597]
[1760181240630,0.1,3820.0,3819.5,0.02618143]
[1760181240964,0.1,3820.0,3819.6,14.9597]
[1760181241468,2.71781067,3820.0,3819.6,14.5]
[1760181241762,0.1,3820.0,3819.7,0.48588006]
[1760181241946,0.1,3820.0,3819.9,2.61786957]
[1760181242150,0.1,3820.0,3819.9,3.10374826]
[1760181243170,0.1,3820.0,3819.9,3.07756957]
[1760181243729,0.1,3820.0,3819.9,17.57756957]
[1760181243943,0.1,3820.0,3819.9,19.74212253]
[1760181245028,0.1,3820.0,3819.9,14.9597]
[1760181245656,0.1,3820.0,3819.9,17.57756957]
[1760181245829,0.1,3820.0,3819.9,14.9597]
[1760181246029,0.1,3820.0,3819.9,17.57756957]
[1760181246446,0.1,3820.0,3819.9,14.9597]
[1760181247282,0.1,3820.0,3819.9,14.5]
[1760181248066,0.1,3820.0,3819.9,17.57756957]
[1760181248266,0.1,3820.0,3819.9,14.9597]
[1760181249374,0.1,3820.0,3819.9,17.57756957]
[1760181249871,0.1,3820.0,3819.9,19.49756957]
[1760181250075,0.1,3820.0,3819.9,21.85412537]
[1760181250285,0.1,3820.0,3819.9,19.2362558]
[1760181250768,0.1,3820.0,3819.9,14.9597]
[1760181251377,0.1,3820.0,3819.9,14.5]
[1760181252168,0.1,3820.0,3819.9,14.9597]
[1760181252754,0.1,3820.0,3819.9,17.57756957]
[1760181253375,0.1,3820.0,3819.9,14.9597]
[1760181253558,0.1,3820.0,3819.9,19.07353957]
[1760181253976,0.1,3820.0,3819.9,16.45567]
[1760181254293,0.1,3820.0,3819.9,14.5]
[1760181255985,0.1,3820.0,3819.9,14.9597]
[1760181256498,0.1,3820.0,3819.9,17.57756957]
[1760181257083,0.1,3820.0,3819.9,14.9597]
[1760181257389,0.1,3820.0,3819.9,17.57756957]
[1760181257688,0.1,3820.0,3819.9,19.5971246]
[1760181259195,0.1,3820.0,3819.9,18.89925503]
[1760181259399,0.1,3820.0,3819.9,19.5971246]
[1760181259573,0.1,3820.0,3819.9,16.97925503]
[1760181259893,0.1,3820.0,3819.9,15.0844]
[1760181260072,0.1,3820.0,3819.9,14.6304]
[1760181260477,0.1,3820.0,3819.9,15.0864]
[1760181260695,0.1,3820.0,3819.9,17.70426957]
[1760181260996,0.1,3820.0,3819.9,15.0864]
[1760181261299,0.1,3820.0,3819.9,16.59504]
[1760181261870,0.1,3820.0,3819.9,19.21290957]
[1760181262397,0.1,3820.0,3819.9,21.13290957]
[1760181262600,0.1,3820.0,3819.9,21.76650957]
[1760181263102,0.1,3820.0,3819.9,21.63610957]
[1760181263395,0.1,3820.0,3819.9,21.76650957]
[1760181265503,0.1,3820.0,3819.9,21.00250957]
[1760181266389,0.1,3820.0,3819.9,21.63610957]
[1760181267314,0.001,3820.6,3820.5,4.53745844]
[1760181267500,0.001,3820.6,3820.5,5.25295925]
[1760181267832,0.001,3820.6,3820.5,5.70695925]
[1760181272496,0.001,3820.6,3820.5,3.08950081]
[1760181272724,0.001,3820.6,3820.5,2.374]
[1760181272924,0.001,3820.6,3820.5,4.99145844]
[1760181273640,0.001,3820.6,3820.5,5.62505844]
[1760181274027,0.001,3820.6,3820.5,20.12505844]
[1760181275659,0.001,3820.6,3820.5,20.25545844]
[1760181275814,0.001,3820.6,3820.5,22.56530231]
[1760181278919,0.001,3820.6,3820.5,21.93170231]
[1760181280448,0.001,3820.6,3820.5,22.56530231]
[1760181280824,0.001,3820.6,3820.5,21.93170231]
[1760181282382,0.001,3820.6,3820.5,22.56530231]
[1760181288250,0.001,3820.6,3820.5,15.0844]
[1760181289649,0.001,3820.6,3820.5,14.6304]
[1760181289854,2.61838993,3820.6,3820.5,15.0989]
[1760181292079,2.61838993,3820.6,3820.5,14.6304]
[1760181292581,2.61838993,3820.6,3820.5,15.0989]
[1760181293164,0.001,3820.6,3820.5,16.23591401]
[1760181293365,0.001,3820.6,3820.5,15.89781401]
[1760181293587,0.001,3820.6,3820.5,15.0989]
[1760181293892,2.61838993,3820.6,3820.5,14.6304]
[1760181294592,2.61838993,3820.6,3820.5,15.0989]
[1760181296168,0.001,3820.6,3820.5,15.0989]
[1760181296791,2.61838993,3820.6,3820.5,15.0989]
[1760181297171,2.61838993,3820.6,3820.5,14.6304]
[1760181297569,2.61838993,3820.6,3820.5,15.0989]
[1760181298406,0.001,3820.6,3820.5,15.0989]
[1760181298605,0.001,3820.6,3820.5,16.60879]
[1760181298907,0.001,3820.6,3820.5,19.22624844]
[1760181299398,0.001,3820.6,3820.5,19.85984844]
[1760181300295,0.001,3820.6,3820.5,16.60879]
[1760181300670,0.001,3820.6,3820.5,14.6304]
[1760181300863,2.61838993,3820.6,3820.5,14.5]
[1760181301064,2.61773252,3820.1,3820.0,0.002]
[1760181301493,5.00953252,3820.1,3820.0,0.002]
[1760181301699,2.61773252,3820.1,3820.0,0.002]
[1760181301899,0.001,3820.6,3820.0,0.4705]
[1760181302197,0.001,3820.6,3820.5,0.223]
[1760181302376,0.001,3820.6,3820.5,14.723]
[1760181302578,2.61838993,3820.6,3820.0,0.002]
[1760181302782,2.61745844,3820.5,3820.0,0.002]
[1760181302976,2.61768174,3820.2,3820.0,0.002]
[1760181303178,0.001,3820.6,3820.1,0.4685]
[1760181303387,2.61748894,3820.5,3820.2,0.4685]
[1760181303598,2.61753351,3820.4,3820.0,0.002]
[1760181303905,0.001,3820.6,3820.0,0.002]
[1760181304196,2.61752696,3820.4,3820.0,0.002]
[1760181304397,0.001,3820.6,3820.0,0.4705]
[1760181304596,2.61773252,3820.1,3820.0,0.002]
[1760181304774,0.001,3820.6,3820.0,0.002]
[1760181305301,2.61773252,3820.1,3820.0,0.002]
[1760181305503,3.61006973,3820.1,3820.0,0.002]
[1760181306471,5.53006973,3820.1,3820.0,0.002]
[1760181307181,4.53773252,3820.1,3820.0,0.002]
[1760181307410,5.00653252,3820.1,3820.0,0.002]
[1760181307773,5.00653252,3820.1,3819.9,0.002]
[1760181307774,5.17140104,3820.0,3819.9,0.002]
[1760181308268,5.63820104,3820.0,3819.9,0.002]
[1760181308880,5.00460104,3820.0,3819.9,0.002]
[1760181309385,5.63820104,3820.0,3819.9,0.002]
[1760181316500,5.63920104,3820.0,3819.9,0.002]
[1760181318013,5.17160664,3819.7,3819.6,1e-08]
[1760181318186,5.17174373,3819.5,3819.4,1e-08]
[1760181318615,5.62204373,3819.5,3819.4,1e-08]
[1760181323437,6.03261918,3819.5,3819.4,1e-08]
[1760181323596,2.62013106,3816.7,3816.2,14.5]
[1760181323803,2.62013666,3816.6,3816.3,0.4634]
[1760181324135,2.61939244,3817.7,3816.4,0.4634]
[1760181324136,2.61944677,3817.6,3816.4,0.4634]
[1760181324335,2.61987621,3817.0,3816.4,0.4896027]
[1760181324638,2.61994611,3816.9,3816.5,14.5]
[1760181324837,2.61973802,3817.2,3816.6,1.9885616]
[1760181324838,2.61986687,3817.0,3816.6,1.9885616]
[1760181325012,2.61986687,3817.0,3816.6,1.5251616]
[1760181325216,2.61957813,3817.5,3816.7,0.4634]
[1760181325427,2.61951851,3817.5,3816.8,14.5]
[1760181325601,2.61959283,3817.4,3816.8,14.5]
[1760181325938,2.61960728,3817.4,3816.8,14.5]
[1760181326228,2.85229518,3818.2,3816.8,14.5]
[1760181326229,2.61992716,3816.9,3816.8,14.5]
[1760181326437,2.61986377,3817.0,3816.8,14.5]
[1760181326633,0.47722952,3818.1,3816.9,0.4634]
[1760181326832,0.4408,3818.4,3816.9,0.4634]
[1760181327139,2.61945032,3817.6,3816.9,0.48959927]
[1760181327434,2.61979933,3817.1,3816.8,14.5]
[1760181327640,0.2332,3818.5,3816.8,14.5]
[1760181327811,1.92,3818.3,3816.9,0.4634]
[1760181328002,1.92,3818.3,3817.0,1.49634]
[1760181328207,2.61978726,3817.2,3817.0,1.49634]
[1760181328504,2.61978989,3817.1,3816.8,14.5]
[1760181328724,2.61937815,3817.7,3816.8,14.5]
[1760181328939,2.61965603,3817.3,3816.8,14.5]
[1760181329115,2.61973809,3817.2,3816.8,14.5]
[1760181329306,2.6196729,3817.3,3816.9,0.4634]
[1760181329508,2.6195893,3817.4,3817.0,1.95974]
[1760181329735,2.6195893,3817.4,3817.1,0.4634]
[1760181330237,2.3608,3818.6,3817.2,0.48959721]
[1760181330402,2.61945091,3817.6,3817.2,0.48959721]
[1760181330605,2.61939066,3817.7,3817.3,0.4634]
[1760181330804,2.61939066,3817.7,3817.4,0.4634]
[1760181331004,2.61951538,3817.5,3817.4,0.4634]
[1760181331245,2.61951538,3817.5,3817.3,0.19859372]
[1760181331246,2.61958401,3817.4,3817.3,0.19859372]
[1760181331406,2.61966284,3817.3,3817.0,1.95974]
[1760181331610,2.61966284,3817.3,3817.1,0.4634]
[1760181332220,2.61966284,3817.3,3816.7,0.4634]
[1760181332419,2.61966284,3817.3,3816.9,0.4634]
[1760181332619,2.61966284,3817.3,3817.0,0.4634]
[1760181332904,2.61960204,3817.4,3817.2,0.1304]
[1760181333132,1.92,3818.3,3817.0,1.95974]
[1760181333133,1.92,3818.5,3817.3,0.5938]
[1760181333333,2.61937218,3817.8,3817.3,0.5938]
[1760181333534,2.61937218,3817.8,3817.4,0.4634]
[1760181333705,2.61937218,3817.8,3817.7,0.1304]
[1760181334039,0.1304,3818.7,3817.7,0.5938]
[1760181334224,2.61911038,3818.1,3817.7,0.5938]
[1760181334404,2.61896799,3818.3,3818.1,0.1304]
[1760181335106,2.61918489,3818.0,3817.8,0.4634]
[1760181335336,2.61896799,3818.3,3817.8,0.4634]
[1760181335535,2.61936409,3817.8,3817.4,0.4634]
[1760181335717,2.61936409,3817.8,3816.1,0.1236]
[1760181335718,2.61992716,3816.9,3816.8,0.002]
[1760181336438,3.07022716,3816.9,3816.8,0.002]
[1760181337007,4.99022716,3816.9,3816.8,0.002]
[1760181337208,4.99022716,3816.9,3814.4,2.6216384]
[1760181337209,2.3703,3816.9,3812.8,0.78827364]
[1760181337404,2.3703,3816.9,3814.1,14.5]
[1760181337405,2.62130053,3815.0,3814.1,14.5]
[1760181337632,2.62133138,3814.9,3814.2,0.2364]
[1760181337945,2.62136107,3814.9,3814.2,0.2364]
[1760181338155,0.2332,3815.8,3814.2,0.2364]
[1760181338156,0.4503,3815.6,3814.2,0.2364]
[1760181338371,0.4503,3815.6,3814.3,14.5]
[1760181338525,2.62151394,3814.6,3814.3,15.99594]
[1760181338728,2.62151394,3814.6,3814.3,16.23234]
[1760181339223,2.62137185,3814.8,3814.4,0.2364]
[1760181339432,2.62110845,3815.2,3814.5,0.2364]
[1760181339884,2.85370018,3816.1,3814.6,0.02621506]
[1760181340155,2.62109356,3815.3,3814.5,0.2364]
[1760181340364,2.62096351,3815.4,3814.5,1.859634]
[1760181340525,2.62089164,3815.5,3814.5,1.859634]
[1760181340732,2.8537353,3816.1,3814.5,1.859634]
[1760181340733,0.4713,3816.0,3814.5,1.859634]
[1760181341058,2.62109225,3815.3,3814.5,1.859634]
[1760181341274,2.62095717,3815.4,3812.7,2.6228093]
[1760181341427,2.62122795,3815.1,3812.8,0.26262744]
[1760181341625,0.2332,3816.1,3812.8,0.26262744]
[1760181341626,2.6207511,3815.7,3813.8,14.5]
[1760181341831,2.62088848,3815.5,3813.8,14.5]
[1760181342032,2.62102586,3815.3,3813.8,14.5]
[1760181342255,3.09240228,3815.2,3813.2,0.2364]
[1760181342562,3.09240228,3815.2,3812.1,1.322038]
[1760181342563,2.62248046,3813.2,3812.1,1.322038]
[1760181342729,2.62237695,3813.4,3812.4,0.2364]
[1760181342926,2.62150684,3814.6,3812.4,0.2364]
[1760181342927,0.6924,3814.3,3812.5,0.0262295]
[1760181343171,2.62157556,3814.5,3812.6,0.2364]
[1760181343472,3.31394058,3814.6,3812.7,0.02622813]
[1760181343768,0.4713,3814.6,3812.8,14.7364]
[1760181343970,0.2211,3814.7,3812.8,14.5]
[1760181343971,0.4713,3814.5,3812.8,14.5]
[1760181344270,0.4713,3814.4,3812.9,0.01001086]
[1760181344431,2.62239409,3813.4,3812.9,0.01001086]
[1760181344634,2.62242008,3813.3,3812.8,14.5]
[1760181344839,2.62171302,3814.3,3812.8,14.5]
[1760181345059,2.62241427,3813.3,3813.1,0.1304]
[1760181345249,2.62219425,3813.6,3813.1,0.1304]
[1760181345449,2.62240608,3813.3,3813.1,0.1304]
[1760181345664,2.62246931,3813.2,3813.1,0.1304]
[1760181345864,0.354,3813.2,3812.8,14.7364]
[1760181346167,0.354,3813.2,3812.8,14.5]
[1760181347380,0.354,3813.2,3812.9,0.2364]
[1760181348075,0.354,3813.2,3812.8,14.5]
[1760181348382,0.354,3813.2,3812.8,14.7364]
[1760181349046,0.354,3813.2,3812.8,14.5]
[1760181349246,0.354,3813.2,3812.9,1.6864]
[1760181349680,0.354,3813.2,3813.0,0.26262606]
[1760181349883,0.354,3813.2,3813.1,2.85893809]
[1760181350177,0.354,3813.2,3813.1,2.1564]
[1760181350485,0.354,3813.2,3813.1,4.77893809]
[1760181350777,0.354,3813.2,3813.1,7.11410603]
[1760181350943,0.354,3813.2,3813.1,4.49156794]
[1760181351147,0.354,3813.2,3813.1,7.11410603]
[1760181352454,0.354,3813.2,3813.1,4.77893809]
[1760181352656,0.354,3813.2,3813.1,19.27893809]
[1760181354670,0.354,3813.2,3813.1,19.91253809]
[1760181356163,0.354,3813.2,3813.1,20.04293809]
[1760181356878,0.354,3813.2,3813.1,16.6564]
[1760181357081,0.354,3813.2,3813.1,21.08977809]
[1760181357475,0.354,3813.2,3813.1,21.72337809]
[1760181358866,0.354,3813.2,3813.1,21.08977809]
[1760181359389,0.354,3813.2,3813.1,21.72337809]
[1760181360396,0.354,3813.2,3813.1,21.08977809]
[1760181360686,0.354,3813.2,3813.1,19.16977809]
[1760181361057,0.354,3813.2,3813.1,21.08977809]
[1760181361463,0.354,3813.2,3813.1,21.72337809]
[1760181366894,0.354,3813.2,3813.1,18.59764]
[1760181367069,0.354,3813.2,3813.1,14.8668]
[1760181367279,0.354,3813.2,3813.1,14.6304]
[1760181367982,2.97646931,3813.2,3813.1,14.6304]
[1760181368495,0.354,3813.2,3813.1,14.6304]
[1760181368796,2.97646931,3813.2,3813.1,14.6304]
[1760181369380,2.62260687,3813.0,3812.9,0.002]
[1760181369572,2.62260687,3813.0,3812.9,0.1324]
[1760181369786,2.62260687,3813.0,3812.9,14.6324]
[1760181370310,2.62260687,3813.0,3812.9,0.1324]
[1760181370477,2.97647726,3813.2,3812.9,0.1324]
[1760181370680,0.354,3813.2,3812.9,0.2384]
[1760181370875,0.354,3813.2,3813.1,0.1304]
[1760181371075,0.354,3813.2,3813.1,0.3668]
[1760181371479,0.354,3813.2,3813.1,14.8668]
[1760181372078,0.354,3813.2,3813.1,14.6304]
[1760181372693,2.97646931,3813.2,3813.1,14.6304]
[1760181372898,2.97646931,3813.2,3813.1,0.1304]
[1760181373095,2.62260687,3813.0,3812.9,0.002]
[1760181373404,2.62260687,3813.0,3812.9,0.1324]
[1760181373607,0.354,3813.2,3812.9,0.1324]
[1760181374170,2.62259653,3813.1,3812.9,0.1324]
[1760181374393,2.62260687,3813.0,3812.9,0.1324]
[1760181374773,3.65507559,3813.0,3812.9,0.002]
[1760181374972,0.60286872,3813.0,3812.9,0.002]
[1760181375176,0.354,3813.2,3812.9,0.002]
[1760181375504,0.354,3813.2,3812.9,0.2384]
[1760181375725,0.354,3813.2,3813.0,0.65982606]
[1760181375894,0.354,3813.2,3813.1,17.35893809]
[1760181376094,0.354,3813.2,3813.1,19.1583919]
[1760181377039,0.354,3813.2,3813.1,16.53585381]
[1760181377242,0.354,3813.2,3813.1,14.7364]
[1760181377445,0.354,3813.2,3813.1,17.35893809]
[1760181378006,0.354,3813.2,3813.1,14.7364]
[1760181378402,0.354,3813.2,3813.1,14.5]
[1760181379712,0.354,3813.2,3812.9,0.002]
[1760181380148,2.62260687,3813.0,3812.9,0.002]
[1760181380448,0.354,3813.2,3812.9,0.002]
[1760181380636,0.354,3813.2,3812.9,0.2384]
[1760181380953,2.97647547,3813.2,3812.9,0.002]
[1760181381119,0.354,3813.2,3812.9,0.002]
[1760181381320,0.354,3813.2,3813.0,0.2364]
[1760181381554,0.354,3813.2,3813.1,0.26262538]
[1760181381851,0.354,3813.2,3813.1,0.2364]
[1760181382032,0.354,3813.2,3813.1,17.35893809]
[1760181382229,0.354,3813.2,3813.1,19.0950319]
[1760181384151,0.354,3813.2,3813.1,16.47249381]
[1760181384341,0.354,3813.2,3813.1,19.0950319]
[1760181384721,0.354,3813.2,3813.1,19.2254319]
[1760181385431,0.354,3813.2,3813.1,21.7790319]
[1760181385755,0.354,3814.6,3813.3,0.6336]
[1760181385921,0.1176,3814.6,3814.5,4.62997556]
[1760181386260,0.1176,3814.6,3814.5,5.26357556]
[1760181386419,0.1176,3814.6,3814.5,19.76357556]
[1760181386755,0.1176,3814.6,3814.5,22.00210002]
[1760181392280,2.6218652,3814.1,3813.1,0.002]
[1760181392434,2.62178661,3814.2,3813.1,2.62453202]
[1760181392630,2.62157556,3814.5,3813.3,14.5]
[1760181392835,0.1176,3814.6,3813.4,0.02038464]
[1760181393066,2.62164808,3814.4,3813.4,0.02038464]
[1760181393261,0.1176,3814.6,3813.5,1.7142784]
[1760181393463,0.1176,3814.6,3813.6,0.02622194]
[1760181393673,0.1176,3814.6,3813.6,0.6336]
[1760181393978,2.62158009,3814.5,3813.7,0.6336]
[1760181394276,2.7391091,3814.6,3813.9,1.92]
[1760181394487,2.7391091,3814.6,3814.0,1.96756516]
[1760181394693,0.1176,3814.6,3814.0,1.96756516]
[1760181394996,0.1176,3814.6,3814.0,2.62191349]
[1760181395157,0.1176,3814.6,3814.2,2.5536]
[1760181395553,0.1176,3814.6,3814.3,1.92]
[1760181395776,0.1176,3814.6,3814.5,0.1304]
[1760181395983,0.1176,3814.6,3814.5,14.6304]
[1760181396181,0.1176,3814.6,3814.5,16.09344]
[1760181397249,0.1176,3814.6,3814.5,14.6304]
[1760181398052,2.73910684,3814.6,3814.5,14.6304]
[1760181398258,0.1176,3814.6,3813.1,0.002]
[1760181398453,2.62183682,3814.2,3813.4,1.92]
[1760181398665,2.62183682,3814.2,3813.5,0.48045613]
[1760181398876,0.1176,3814.6,3813.5,0.48045613]
[1760181399091,0.1176,3814.6,3813.6,0.6336]
[1760181399278,0.1176,3814.6,3814.5,0.1304]
[1760181402055,0.1176,3814.6,3814.5,0.15661575]
[1760181402388,0.1176,3814.6,3814.5,0.1304]
[1760181402611,0.1176,3814.6,3814.5,3.38557556]
[1760181402906,0.1176,3814.6,3814.5,3.72413312]
[1760181403071,0.1176,3814.6,3814.5,5.64413312]
[1760181405008,0.1176,3814.6,3814.5,3.02255756]
[1760181405615,0.1176,3814.6,3814.5,5.64413312]
[1760181405760,0.1176,3814.6,3814.5,3.02255756]
[1760181406160,0.1176,3814.6,3814.5,2.38895756]
[1760181406360,0.1176,3814.6,3814.5,2.0504]
[1760181406799,0.1176,3814.6,3814.5,0.1304]
[1760181408630,2.73910684,3814.6,3814.5,0.1304]
[1760181408792,2.7391573,3814.6,3813.9,1.92]
[1760181408978,0.1176,3814.6,3814.1,0.0262185]
[1760181409176,0.1176,3814.6,3814.0,0.45682767]
[1760181409412,2.73912406,3814.6,3814.0,0.45682767]
[1760181409903,2.73912164,3814.6,3814.0,0.45682767]
[1760181410072,2.62157696,3814.5,3813.8,1.92]
[1760181410277,0.1176,3814.6,3813.4,1.92]
[1760181410606,0.1176,3814.6,3814.0,0.002]
[1760181410810,2.6218505,3814.1,3814.0,0.002]
[1760181411403,3.0500505,3814.1,3814.0,0.002]
[1760181411607,2.6218505,3814.1,3814.0,0.002]
[1760181411807,3.0500505,3814.1,3814.0,0.002]
[1760181411988,3.61723161,3814.1,3814.0,0.002]
[1760181414478,2.6218505,3814.1,3814.0,0.002]
[1760181415980,0.1186,3814.6,3814.0,0.002]
[1760181416380,0.1186,3814.6,3814.0,0.02821918]
[1760181416627,0.1186,3814.6,3814.0,0.002]
[1760181416933,2.62157556,3814.5,3814.0,0.002]
[1760181417141,0.1186,3814.6,3814.0,0.002]
[1760181417633,2.62157556,3814.5,3814.0,0.002]
[1760181417835,0.1186,3814.6,3814.0,0.002]
[1760181418245,2.62157556,3814.5,3814.0,0.002]
[1760181418537,2.62165121,3814.4,3814.0,0.002]
[1760181418940,2.74017526,3814.6,3814.3,0.1304]
[1760181419117,0.1186,3814.6,3814.3,0.1304]
[1760181419311,0.1186,3814.6,3814.5,0.1304]
[1760181419913,2.74010684,3814.6,3814.5,0.1304]
[1760181420814,3.70445866,3814.6,3814.5,0.1304]
[1760181421025,2.6218505,3814.1,3814.0,0.002]
[1760181422439,2.6218505,3814.1,3814.0,0.1324]
[1760181422814,0.1186,3814.6,3814.0,0.1324]
[1760181423039,2.740142,3814.6,3814.0,0.1324]
[1760181423355,0.1186,3814.6,3814.4,0.1304]
[1760181423539,2.62157556,3814.5,3814.4,0.1304]
[1760181423839,2.62157556,3814.5,3814.0,0.002]
[1760181423840,2.6218505,3814.1,3814.0,0.002]
[1760181424218,3.1804505,3814.1,3814.0,0.002]
[1760181424642,2.7522505,3814.1,3814.0,0.002]
[1760181425144,2.6218505,3814.1,3814.0,0.002]
[1760181425944,2.6218505,3814.1,3814.0,0.1324]
[1760181426143,0.1186,3814.6,3814.0,0.1324]
[1760181426144,2.62178882,3814.2,3814.0,0.1324]
[1760181426476,2.74010684,3814.6,3814.5,0.1304]
[1760181426608,0.1186,3814.6,3814.0,0.02821919]
[1760181426808,0.1186,3814.6,3814.1,0.26501938]
[1760181427053,0.1186,3814.6,3814.0,0.002]
[1760181427417,2.62176955,3814.3,3814.0,0.002]
[1760181427618,2.62158893,3814.5,3814.0,0.002]
[1760181427946,2.6218505,3814.1,3814.0,0.002]
[1760181428165,0.1186,3814.6,3814.0,0.002]
[1760181428166,2.62178417,3814.2,3814.0,0.002]
[1760181428340,0.1186,3814.6,3814.0,0.002]
[1760181428341,2.6218505,3814.1,3814.0,0.002]
[1760181428949,3.14620761,3814.1,3814.0,0.002]
[1760181429644,2.6218505,3814.1,3814.0,0.002]
[1760181430416,3.0500505,3814.1,3814.0,0.002]
[1760181430610,2.6218505,3814.1,3814.0,0.002]
[1760181432579,0.1186,3814.6,3814.0,0.002]
[1760181432939,0.1186,3814.6,3814.0,0.02821919]
[1760181433168,2.74011671,3814.6,3814.0,0.002]
[1760181433371,0.1186,3814.6,3814.1,0.32576567]
[1760181433571,0.1186,3814.6,3814.2,0.02621781]
[1760181434064,2.62158972,3814.5,3814.0,0.002]
[1760181434376,2.6218505,3814.1,3814.0,0.002]
[1760181435065,0.1186,3814.6,3814.0,0.002]
[1760181435265,2.6218505,3814.1,3814.0,0.002]
[1760181436744,2.6218505,3814.1,3814.0,0.1324]
[1760181439387,3.58020776,3814.1,3814.0,0.002]
[1760181442399,3.58020776,3814.1,3813.6,1e-08]
[1760181442400,2.62212549,3813.7,3813.6,1e-08]
[1760181442900,3.05612549,3813.7,3813.6,1e-08]
[1760181443102,4.97612549,3813.7,3813.6,1e-08]
[1760181443968,5.60972549,3813.7,3813.6,1e-08]
[1760181444163,6.43290124,3813.7,3813.6,1e-08]
[1760181444774,5.79930124,3813.7,3813.6,1e-08]
[1760181445069,5.94740124,3813.7,3813.6,1e-08]
[1760181445268,6.58100124,3813.7,3813.6,1e-08]
[1760181449006,5.94740124,3813.7,3813.6,1e-08]
[1760181449511,6.58100124,3813.7,3813.6,1e-08]
[1760181450745,5.94740124,3813.7,3813.6,1e-08]
[1760181451480,6.30140124,3813.7,3813.6,1e-08]
[1760181451681,4.38140124,3813.7,3813.6,1e-08]
[1760181451993,4.02740124,3813.7,3813.6,1e-08]
[1760181452199,4.38140124,3813.7,3813.6,1e-08]
[1760181452580,2.97612549,3813.7,3813.6,1e-08]
[1760181452977,3.41012549,3813.7,3813.6,1e-08]
[1760181453178,2.97612549,3813.7,3813.6,1e-08]
[1760181453382,3.41012549,3813.7,3813.6,1e-08]
[1760181454001,5.33012549,3813.7,3813.6,1e-08]
[1760181454200,6.13838124,3813.7,3813.6,1e-08]
[1760181459117,2.62301094,3812.5,3811.6,2.62353667]
[1760181459294,2.62280957,3812.8,3811.7,2.64973196]
[1760181459497,1.59625575,3813.7,3811.8,0.02623432]
[1760181459498,0.354,3813.7,3811.8,0.02623432]
[1760181459696,2.62253249,3813.2,3812.3,2.62303248]
[1760181460021,0.354,3813.7,3812.4,2.6492193]
[1760181460327,2.62246137,3813.3,3812.5,17.12294929]
[1760181460489,2.62249829,3813.2,3812.6,0.02622882]
[1760181460685,0.354,3813.7,3812.7,1.71492427]
[1760181460912,2.62247293,3813.2,3812.8,0.02622744]
[1760181461122,2.62247293,3813.2,3812.9,14.5]
[1760181461288,2.62220501,3813.6,3813.0,0.02622606]
[1760181461485,0.354,3813.7,3813.0,0.02622606]
[1760181461719,2.62247503,3813.2,3813.0,0.02622606]
[1760181461918,0.354,3813.7,3813.1,1.45262261]
[1760181462120,2.62233381,3813.4,3813.2,0.02622469]
[1760181462330,2.97618706,3813.7,3813.2,0.02622469]
[1760181462493,0.354,3813.7,3813.2,0.02622469]
[1760181462692,2.62219487,3813.6,3813.2,0.02622469]
[1760181462925,2.62227433,3813.5,3813.3,0.14788473]
[1760181463303,2.62226301,3813.5,3813.4,0.1304]
[1760181464023,2.62226301,3813.5,3812.9,14.5]
[1760181464024,2.62260687,3813.0,3812.9,14.5]
[1760181464195,0.354,3813.7,3813.2,0.1304]
[1760181464392,2.62240054,3813.3,3813.2,0.1304]
[1760181465525,2.62314245,3812.3,3811.5,2.62358725]
[1760181465829,2.62314245,3812.3,3812.1,14.5]
[1760181466027,2.62263325,3813.0,3812.2,0.1304]
[1760181466028,2.62300679,3812.5,3812.2,0.1304]
[1760181466217,2.62300679,3812.5,3812.1,14.5]
[1760181466218,2.62303949,3812.4,3812.1,14.5]
[1760181466393,0.4314,3813.3,3812.1,14.5]
[1760181466599,0.1304,3813.2,3812.6,0.1304]
[1760181466799,2.62281322,3812.7,3812.6,0.1304]
[1760181468204,2.62315723,3812.2,3812.1,0.002]
[1760181468408,2.62315723,3812.2,3812.1,0.1324]
[1760181468596,2.62315723,3812.2,3812.1,0.002]